[Event "Late-Titled-Tuesday-Blitz-March-26-2024"]
[Site "Chess.com"]
[Date "2024.03.26"]
[Round "8"]
[White "RebelJohnny"]
[Black "GMG"]
[Result "0-1"]
[WhiteElo "2605"]
[BlackElo "2799"]
[TimeControl "180+1"]
[EndTime "15:28:44 PDT"]
[Termination "GMG won by resignation"]

1. e4 {[%clk 0:02:55.3]} 1... c6 {[%clk 0:02:58.7]} 2. d4 {[%clk 0:02:55]} 2...
d5 {[%clk 0:02:58.8]} 3. Nd2 {[%clk 0:02:55.7]} 3... dxe4 {[%clk 0:02:58.7]} 4.
Nxe4 {[%clk 0:02:56.6]} 4... Nf6 {[%clk 0:02:59.3]} 5. Nxf6+ {[%clk 0:02:57.2]}
5... exf6 {[%clk 0:03:00.2]} 6. c3 {[%clk 0:02:57.9]} 6... Bd6 {[%clk
0:03:00.6]} 7. Bd3 {[%clk 0:02:58.6]} 7... O-O {[%clk 0:03:01.3]} 8. Qc2 {[%clk
0:02:59.2]} 8... Re8+ {[%clk 0:03:02.2]} 9. Ne2 {[%clk 0:02:59.6]} 9... h5
{[%clk 0:03:02.8]} 10. O-O {[%clk 0:02:59.3]} 10... Nd7 {[%clk 0:02:55.7]} 11.
Bf4 {[%clk 0:02:58.6]} 11... Nf8 {[%clk 0:02:27.4]} 12. Bxd6 {[%clk 0:02:57.3]}
12... Qxd6 {[%clk 0:02:28.3]} 13. Rfe1 {[%clk 0:02:49.7]} 13... h4 {[%clk
0:02:27]} 14. Bf5 {[%clk 0:02:14]} 14... Bxf5 {[%clk 0:02:23.1]} 15. Qxf5 {[%clk
0:02:14.9]} 15... Ng6 {[%clk 0:02:23.8]} 16. Rad1 {[%clk 0:01:59.8]} 16... Re7
{[%clk 0:02:15.2]} 17. Nc1 {[%clk 0:01:56.1]} 17... Rae8 {[%clk 0:02:14.5]} 18.
Nd3 {[%clk 0:01:49.3]} 18... b6 {[%clk 0:01:56.2]} 19. g3 {[%clk 0:01:34.4]}
19... a5 {[%clk 0:01:51]} 20. Rxe7 {[%clk 0:01:21.6]} 20... Rxe7 {[%clk
0:01:51.4]} 21. Re1 {[%clk 0:01:21.7]} 21... Rxe1+ {[%clk 0:01:47.9]} 22. Nxe1
{[%clk 0:01:22.6]} 22... Qe6 {[%clk 0:01:41.1]} 23. Qxe6 {[%clk 0:01:19.6]}
23... fxe6 {[%clk 0:01:42]} 24. Nf3 {[%clk 0:01:17.5]} 24... hxg3 {[%clk
0:01:41.8]} 25. hxg3 {[%clk 0:01:18.4]} 25... Kf7 {[%clk 0:01:42.2]} 26. Kf1
{[%clk 0:01:18.9]} 26... Ke7 {[%clk 0:01:42.5]} 27. Ke2 {[%clk 0:01:19.5]} 27...
Kd6 {[%clk 0:01:43]} 28. Kd3 {[%clk 0:01:20.2]} 28... Ne7 {[%clk 0:01:37.7]} 29.
c4 {[%clk 0:01:15.5]} 29... c5 {[%clk 0:01:35.1]} 30. b3 {[%clk 0:01:05.1]}
30... Nc6 {[%clk 0:01:34]} 31. a3 {[%clk 0:01:02.4]} 31... g5 {[%clk 0:01:23.9]}
32. Kc3 {[%clk 0:00:53.9]} 32... g4 {[%clk 0:01:21.5]} 33. dxc5+ {[%clk
0:00:53.8]} 33... bxc5 {[%clk 0:01:21.6]} 34. Ne1 {[%clk 0:00:49.8]} 34... f5
{[%clk 0:01:01.1]} 35. Nd3 {[%clk 0:00:45.8]} 35... e5 {[%clk 0:01:00.8]} 36. b4
{[%clk 0:00:26.8]} 36... cxb4+ {[%clk 0:01:01.7]} 37. axb4 {[%clk 0:00:26.9]}
37... e4 {[%clk 0:00:46.9]} 38. c5+ {[%clk 0:00:26.1]} 38... Kc7 {[%clk
0:00:36.1]} 39. Nf4 {[%clk 0:00:23.8]} 39... Nxb4 {[%clk 0:00:36.3]} 40. Kc4
{[%clk 0:00:15.1]} 40... Nd3 {[%clk 0:00:36.5]} 41. Nd5+ {[%clk 0:00:13.2]}
41... Kd8 {[%clk 0:00:30.2]} 42. c6 {[%clk 0:00:07.4]} 42... a4 {[%clk
0:00:23.8]} 43. Kb5 {[%clk 0:00:05.2]} 43... a3 {[%clk 0:00:12]} 44. c7+ {[%clk
0:00:03.6]} 44... Kd7 {[%clk 0:00:11.4]} 45. Kb6 {[%clk 0:00:03.6]} 45... a2
{[%clk 0:00:11.9]} 46. Ne7 {[%clk 0:00:02.8]} 46... Kxe7 {[%clk 0:00:10.8]} 47.
c8=Q {[%clk 0:00:03.1]} 47... a1=Q {[%clk 0:00:11.2]} 48. Qc7+ {[%clk
0:00:03.8]} 48... Kf6 {[%clk 0:00:10.5]} 49. Qd6+ {[%clk 0:00:04.4]} 49... Kf7
{[%clk 0:00:09.7]} 50. Qd7+ {[%clk 0:00:04.4]} 50... Kg6 {[%clk 0:00:09.5]} 51.
Qe8+ {[%clk 0:00:04.5]} 51... Kg7 {[%clk 0:00:09.3]} 52. Qe7+ {[%clk 0:00:03.3]}
52... Kh6 {[%clk 0:00:09.2]} 53. Qh4+ {[%clk 0:00:03]} 53... Kg6 {[%clk
0:00:08.7]} 54. Kc6 {[%clk 0:00:02.6]} 54... Qf6+ {[%clk 0:00:09.1]} 0-1

[Event "Late-Titled-Tuesday-Blitz-March-26-2024"]
[Site "Chess.com"]
[Date "2024.03.26"]
[Round "8"]
[White "yujiarun18"]
[Black "dasatcu90"]
[Result "0-1"]
[WhiteElo "2117"]
[BlackElo "2245"]
[TimeControl "180+1"]
[EndTime "15:28:52 PDT"]
[Termination "dasatcu90 won by resignation"]

1. e4 {[%clk 0:02:56.6]} 1... c6 {[%clk 0:03:00]} 2. d4 {[%clk 0:02:56.3]} 2...
d5 {[%clk 0:03:00.9]} 3. Nc3 {[%clk 0:02:56.3]} 3... dxe4 {[%clk 0:03:01.1]} 4.
Nxe4 {[%clk 0:02:57.2]} 4... Nf6 {[%clk 0:03:01.4]} 5. Nxf6+ {[%clk 0:02:57.2]}
5... exf6 {[%clk 0:03:02.3]} 6. c3 {[%clk 0:02:57.6]} 6... Bd6 {[%clk
0:03:02.8]} 7. Bd3 {[%clk 0:02:58.2]} 7... O-O {[%clk 0:03:02.8]} 8. Qc2 {[%clk
0:02:58.9]} 8... Re8+ {[%clk 0:03:03]} 9. Ne2 {[%clk 0:02:59.4]} 9... h5 {[%clk
0:03:02.1]} 10. Be3 {[%clk 0:02:58]} 10... Be6 {[%clk 0:03:01.3]} 11. Ng3 {[%clk
0:02:48.5]} 11... h4 {[%clk 0:02:11]} 12. Ne4 {[%clk 0:02:48.1]} 12... Na6
{[%clk 0:02:04.5]} 13. Nxd6 {[%clk 0:02:41.1]} 13... Qxd6 {[%clk 0:02:05.4]} 14.
g3 {[%clk 0:02:40.9]} 14... h3 {[%clk 0:02:04.4]} 15. a3 {[%clk 0:02:35.2]}
15... Nc7 {[%clk 0:01:56.4]} 16. O-O-O {[%clk 0:02:34.6]} 16... b5 {[%clk
0:01:48]} 17. Bf4 {[%clk 0:02:34.2]} 17... Qd7 {[%clk 0:01:45.3]} 18. Rhe1
{[%clk 0:02:33.1]} 18... Nd5 {[%clk 0:01:44.3]} 19. Bd2 {[%clk 0:02:31.5]} 19...
a5 {[%clk 0:01:43.5]} 20. c4 {[%clk 0:02:28.2]} 20... bxc4 {[%clk 0:01:42]} 21.
Bxc4 {[%clk 0:02:28]} 21... Reb8 {[%clk 0:01:33.7]} 22. f4 {[%clk 0:02:20.4]}
22... Bf5 {[%clk 0:01:22.7]} 23. Bd3 {[%clk 0:02:20.1]} 23... Bxd3 {[%clk
0:01:19.8]} 24. Qxd3 {[%clk 0:02:20.6]} 24... Rb5 {[%clk 0:01:09.7]} 25. Re2
{[%clk 0:02:16.2]} 25... Rab8 {[%clk 0:01:09.2]} 26. Be1 {[%clk 0:02:14.4]}
26... g6 {[%clk 0:00:51.2]} 27. Rc2 {[%clk 0:02:09.1]} 27... Kg7 {[%clk
0:00:50.6]} 28. Rdd2 {[%clk 0:02:07.4]} 28... Qe6 {[%clk 0:00:44.1]} 29. Re2
{[%clk 0:02:05.9]} 29... Qd6 {[%clk 0:00:43.7]} 30. Qc4 {[%clk 0:02:03.2]} 30...
R8b6 {[%clk 0:00:41]} 31. Bf2 {[%clk 0:01:52.1]} 31... f5 {[%clk 0:00:41.3]} 32.
Qd3 {[%clk 0:01:49.5]} 32... Rb3 {[%clk 0:00:41.2]} 33. Qc4 {[%clk 0:01:42.8]}
33... Qf6 {[%clk 0:00:24.1]} 34. Qc5 {[%clk 0:01:35.2]} 34... R3b5 {[%clk
0:00:23.8]} 35. Qc4 {[%clk 0:01:29.3]} 35... Qd6 {[%clk 0:00:20.4]} 36. Qa4
{[%clk 0:01:26.4]} 36... Nf6 {[%clk 0:00:16.7]} 37. d5 {[%clk 0:01:24.9]} 37...
c5 {[%clk 0:00:17]} 38. Qc4 {[%clk 0:01:17.6]} 38... Ne4 {[%clk 0:00:17.3]} 39.
Be3 {[%clk 0:01:16]} 39... f6 {[%clk 0:00:16.7]} 40. Bd2 {[%clk 0:01:13.1]}
40... Rb3 {[%clk 0:00:13.8]} 41. Bxa5 {[%clk 0:01:09.7]} 41... R6b5 {[%clk
0:00:12.9]} 42. Bc3 {[%clk 0:01:06.9]} 42... Nxc3 {[%clk 0:00:11]} 43. Rxc3
{[%clk 0:01:07.2]} 43... Rxc3+ {[%clk 0:00:10.7]} 44. Qxc3 {[%clk 0:01:07.9]}
44... Qxd5 {[%clk 0:00:10.4]} 45. Rd2 {[%clk 0:01:08.4]} 45... Qb7 {[%clk
0:00:06.4]} 46. Qc4 {[%clk 0:01:00.5]} 46... Rb6 {[%clk 0:00:06.4]} 47. Qc3
{[%clk 0:01:00.2]} 47... Rc6 {[%clk 0:00:06.5]} 48. Qc2 {[%clk 0:00:59.6]} 48...
Rc7 {[%clk 0:00:07.1]} 49. Qd1 {[%clk 0:01:00]} 49... Qc6 {[%clk 0:00:06.8]} 50.
Rc2 {[%clk 0:01:00.4]} 50... c4 {[%clk 0:00:06.6]} 51. Kb1 {[%clk 0:01:00.2]}
51... Qe4 {[%clk 0:00:06.3]} 52. Ka2 {[%clk 0:00:59.7]} 52... c3 {[%clk
0:00:05.7]} 53. Qd6 {[%clk 0:00:54]} 53... Qc4+ {[%clk 0:00:04.9]} 54. Ka1
{[%clk 0:00:53.2]} 54... cxb2+ {[%clk 0:00:04.9]} 55. Rxb2 {[%clk 0:00:50.9]}
55... Qc2 {[%clk 0:00:05.8]} 56. Rxc2 {[%clk 0:00:50.5]} 56... Rxc2 {[%clk
0:00:06.2]} 57. Qd7+ {[%clk 0:00:50.8]} 57... Kh6 {[%clk 0:00:06.1]} 58. Qd3
{[%clk 0:00:50.9]} 58... Rxh2 {[%clk 0:00:06]} 59. Qd8 {[%clk 0:00:48.2]} 59...
Kh5 {[%clk 0:00:05.8]} 60. Qd1+ {[%clk 0:00:44.6]} 60... Kh6 {[%clk 0:00:05.2]}
61. g4 {[%clk 0:00:44.3]} 61... Rg2 {[%clk 0:00:04.2]} 62. gxf5 {[%clk
0:00:44.2]} 62... h2 {[%clk 0:00:04.2]} 63. Qb1 {[%clk 0:00:27.8]} 63... Rg1
{[%clk 0:00:05.1]} 64. a4 {[%clk 0:00:28.6]} 64... Rxb1+ {[%clk 0:00:04.5]} 65.
Kxb1 {[%clk 0:00:29.5]} 65... h1=Q+ {[%clk 0:00:04.4]} 66. Kb2 {[%clk
0:00:30.4]} 66... Qe4 {[%clk 0:00:04.9]} 67. Ka3 {[%clk 0:00:31.3]} 67... Qxf4
{[%clk 0:00:05.7]} 68. a5 {[%clk 0:00:31.4]} 68... Qxf5 {[%clk 0:00:06.6]} 69.
a6 {[%clk 0:00:32.3]} 69... Qb5 {[%clk 0:00:07.2]} 70. a7 {[%clk 0:00:33.2]}
70... Qa6+ {[%clk 0:00:07.9]} 71. Kb3 {[%clk 0:00:34.1]} 71... Qxa7 {[%clk
0:00:08.8]} 72. Kc3 {[%clk 0:00:34.9]} 72... Qb7 {[%clk 0:00:09.7]} 73. Kd4
{[%clk 0:00:35.8]} 73... Qc7 {[%clk 0:00:10.6]} 74. Kd3 {[%clk 0:00:36.7]} 74...
Qd7+ {[%clk 0:00:11.5]} 75. Ke3 {[%clk 0:00:37.6]} 75... Qe6+ {[%clk 0:00:12.4]}
0-1

[Event "Late-Titled-Tuesday-Blitz-March-26-2024"]
[Site "Chess.com"]
[Date "2024.03.26"]
[Round "8"]
[White "SahibSinghKnight"]
[Black "Budisavljevic"]
[Result "0-1"]
[WhiteElo "2577"]
[BlackElo "2777"]
[TimeControl "180+1"]
[EndTime "15:28:53 PDT"]
[Termination "Budisavljevic won by resignation"]

1. e4 {[%clk 0:02:57.3]} 1... c5 {[%clk 0:02:58]} 2. Nf3 {[%clk 0:02:56.4]} 2...
e6 {[%clk 0:02:57.3]} 3. c3 {[%clk 0:02:54.4]} 3... d5 {[%clk 0:02:50.6]} 4.
exd5 {[%clk 0:02:54.3]} 4... exd5 {[%clk 0:02:51.5]} 5. d4 {[%clk 0:02:53.9]}
5... Nf6 {[%clk 0:02:50.7]} 6. Bb5+ {[%clk 0:02:43.5]} 6... Bd7 {[%clk
0:02:50.9]} 7. Qe2+ {[%clk 0:02:43.1]} 7... Be7 {[%clk 0:02:50.7]} 8. dxc5
{[%clk 0:02:40.7]} 8... O-O {[%clk 0:02:49.8]} 9. Be3 {[%clk 0:02:40.3]} 9...
Re8 {[%clk 0:02:49.3]} 10. b4 {[%clk 0:02:36.2]} 10... Ng4 {[%clk 0:02:38]} 11.
O-O {[%clk 0:02:27.2]} 11... a5 {[%clk 0:02:32.7]} 12. Bxd7 {[%clk 0:02:22.4]}
12... Nxd7 {[%clk 0:02:33.6]} 13. Nd4 {[%clk 0:02:11.4]} 13... Nxe3 {[%clk
0:02:33.4]} 14. fxe3 {[%clk 0:02:11.5]} 14... Bg5 {[%clk 0:02:33.2]} 15. Rf3
{[%clk 0:02:06]} 15... Ne5 {[%clk 0:02:11.1]} 16. Rg3 {[%clk 0:01:48.7]} 16...
Nc4 {[%clk 0:02:06.2]} 17. Qg4 {[%clk 0:01:30]} 17... Bxe3+ {[%clk 0:02:02.4]}
18. Kf1 {[%clk 0:01:30.2]} 18... g6 {[%clk 0:01:53.8]} 19. Nf5 {[%clk 0:01:29]}
19... Qf6 {[%clk 0:01:32.9]} 20. Rf3 {[%clk 0:01:28.6]} 20... Ne5 {[%clk
0:01:26.5]} 21. Nxe3 {[%clk 0:01:17.5]} 21... Nxg4 {[%clk 0:01:26.1]} 22. Rxf6
{[%clk 0:01:17.7]} 22... Nxf6 {[%clk 0:01:27]} 23. Nc2 {[%clk 0:01:15.8]} 23...
Ne4 {[%clk 0:01:21]} 24. Nd4 {[%clk 0:01:09.3]} 24... Ra6 {[%clk 0:01:14.8]} 25.
a3 {[%clk 0:00:59.7]} 25... Rf6+ {[%clk 0:01:12.6]} 26. Nf3 {[%clk 0:01:00.1]}
26... g5 {[%clk 0:01:11.7]} 27. h3 {[%clk 0:01:00.4]} 27... h5 {[%clk
0:01:11.6]} 28. Kg1 {[%clk 0:00:58.5]} 28... g4 {[%clk 0:01:11.6]} 29. Nd4
{[%clk 0:00:57.6]} 29... g3 {[%clk 0:01:08.1]} 30. Nf3 {[%clk 0:00:53.4]} 30...
Rfe6 {[%clk 0:00:55.6]} 31. Kf1 {[%clk 0:00:48.3]} 31... f6 {[%clk 0:00:46.6]}
32. a4 {[%clk 0:00:37.2]} 32... Ng5 {[%clk 0:00:44.2]} 33. Nbd2 {[%clk
0:00:36.2]} 33... Re2 {[%clk 0:00:44.2]} 34. Kg1 {[%clk 0:00:18]} 34... Rf2
{[%clk 0:00:39.8]} 35. Rf1 {[%clk 0:00:15.3]} 35... Ree2 {[%clk 0:00:31.9]} 36.
Rxf2 {[%clk 0:00:13.4]} 36... Rxf2 {[%clk 0:00:29.9]} 37. bxa5 {[%clk
0:00:10.1]} 37... Nxf3+ {[%clk 0:00:27.1]} 38. Nxf3 {[%clk 0:00:11]} 38... Ra2
{[%clk 0:00:25.3]} 39. Kf1 {[%clk 0:00:11.3]} 39... Rxa4 {[%clk 0:00:25.6]} 40.
Nd4 {[%clk 0:00:08.7]} 40... Rxa5 {[%clk 0:00:24.7]} 41. c6 {[%clk 0:00:09]}
41... bxc6 {[%clk 0:00:24.7]} 42. Nxc6 {[%clk 0:00:09.9]} 42... Rc5 {[%clk
0:00:24.8]} 43. Nb4 {[%clk 0:00:05.5]} 43... Kf7 {[%clk 0:00:23.9]} 44. Ke2
{[%clk 0:00:05.7]} 44... Ke6 {[%clk 0:00:21.2]} 45. Kd2 {[%clk 0:00:05.9]} 45...
h4 {[%clk 0:00:20.8]} 46. Nd3 {[%clk 0:00:06]} 46... Rc4 {[%clk 0:00:21]} 47.
Ne1 {[%clk 0:00:06.3]} 47... Ra4 {[%clk 0:00:19.1]} 48. Ke3 {[%clk 0:00:05.4]}
48... f5 {[%clk 0:00:18]} 49. Nd3 {[%clk 0:00:05.3]} 49... Rc4 {[%clk
0:00:15.6]} 50. Kd2 {[%clk 0:00:03.2]} 50... f4 {[%clk 0:00:15]} 51. Ne1 {[%clk
0:00:02.9]} 51... Ra4 {[%clk 0:00:13.3]} 52. Ke2 {[%clk 0:00:02.4]} 52... Kf5
{[%clk 0:00:12]} 53. Kf3 {[%clk 0:00:02.8]} 53... Ra2 {[%clk 0:00:10.9]} 54. Nd3
{[%clk 0:00:02.3]} 54... Rd2 {[%clk 0:00:10.7]} 55. Nxf4 {[%clk 0:00:02.9]}
55... Rf2+ {[%clk 0:00:10.9]} 56. Ke3 {[%clk 0:00:03.8]} 56... Rxf4 {[%clk
0:00:11.4]} 0-1

[Event "Late-Titled-Tuesday-Blitz-March-26-2024"]
[Site "Chess.com"]
[Date "2024.03.26"]
[Round "8"]
[White "Kavyev_Ruslan"]
[Black "simaopdias"]
[Result "1-0"]
[WhiteElo "2388"]
[BlackElo "2281"]
[TimeControl "180+1"]
[EndTime "15:28:55 PDT"]
[Termination "Kavyev_Ruslan won by resignation"]

1. d4 {[%clk 0:03:00.9]} 1... d5 {[%clk 0:02:59.5]} 2. Nf3 {[%clk 0:02:59.8]}
2... Nf6 {[%clk 0:02:59.5]} 3. c4 {[%clk 0:02:59.8]} 3... e6 {[%clk 0:03:00]} 4.
g3 {[%clk 0:02:58.9]} 4... Be7 {[%clk 0:03:00.6]} 5. Bg2 {[%clk 0:02:58.4]} 5...
O-O {[%clk 0:03:01.5]} 6. Nc3 {[%clk 0:02:58.4]} 6... b6 {[%clk 0:03:01.7]} 7.
cxd5 {[%clk 0:02:57.3]} 7... exd5 {[%clk 0:03:00.7]} 8. O-O {[%clk 0:02:55.9]}
8... h6 {[%clk 0:03:00.9]} 9. Bf4 {[%clk 0:02:54.9]} 9... Be6 {[%clk 0:03:01.2]}
10. Rc1 {[%clk 0:02:50.8]} 10... c5 {[%clk 0:02:58.6]} 11. Ne5 {[%clk
0:02:46.5]} 11... c4 {[%clk 0:02:53.2]} 12. Nxc4 {[%clk 0:02:43.9]} 12... dxc4
{[%clk 0:02:51.2]} 13. Bxa8 {[%clk 0:02:43.1]} 13... Nd5 {[%clk 0:02:49.5]} 14.
Nxd5 {[%clk 0:02:39.8]} 14... Bxd5 {[%clk 0:02:50.4]} 15. Bxd5 {[%clk
0:02:39.6]} 15... Qxd5 {[%clk 0:02:50.1]} 16. Bxb8 {[%clk 0:02:13.3]} 16... Rxb8
{[%clk 0:02:49.4]} 17. e3 {[%clk 0:02:11.7]} 17... b5 {[%clk 0:02:48.2]} 18. b3
{[%clk 0:02:06.2]} 18... Rc8 {[%clk 0:02:16.6]} 19. bxc4 {[%clk 0:02:05.2]}
19... bxc4 {[%clk 0:02:16.7]} 20. Qa4 {[%clk 0:01:55.2]} 20... a5 {[%clk
0:02:07.7]} 21. Rc2 {[%clk 0:01:54.2]} 21... c3 {[%clk 0:02:00.6]} 22. Rfc1
{[%clk 0:01:50.3]} 22... Rc4 {[%clk 0:01:49.8]} 23. Qb3 {[%clk 0:01:36.4]} 23...
a4 {[%clk 0:01:44.3]} 24. Qb8+ {[%clk 0:01:31.4]} 24... Bf8 {[%clk 0:01:44]} 25.
Qe5 {[%clk 0:01:15.7]} 25... Qc6 {[%clk 0:01:35.5]} 26. d5 {[%clk 0:01:13.8]}
26... Qb5 {[%clk 0:01:08.8]} 27. Rxc3 {[%clk 0:01:10]} 27... Rxc3 {[%clk
0:01:05]} 28. Qxc3 {[%clk 0:01:08.6]} 28... Qxd5 {[%clk 0:01:04.3]} 29. Qc4
{[%clk 0:01:08.7]} 29... Qd7 {[%clk 0:01:02.8]} 30. h4 {[%clk 0:01:08.1]} 30...
a3 {[%clk 0:01:01.1]} 31. Qb3 {[%clk 0:01:03.8]} 31... Qd2 {[%clk 0:00:59.4]}
32. Rd1 {[%clk 0:01:03.5]} 32... Qe2 {[%clk 0:00:48.1]} 33. Qd5 {[%clk
0:00:56.5]} 33... g6 {[%clk 0:00:43.1]} 34. Rd2 {[%clk 0:00:55.1]} 34... Qg4
{[%clk 0:00:40]} 35. Kg2 {[%clk 0:00:52.4]} 35... Qc8 {[%clk 0:00:39.1]} 36. Qe4
{[%clk 0:00:47.4]} 36... Qc7 {[%clk 0:00:35.9]} 37. Rc2 {[%clk 0:00:43.7]} 37...
Qd7 {[%clk 0:00:35.3]} 38. h5 {[%clk 0:00:43.4]} 38... gxh5 {[%clk 0:00:34.2]}
39. Qf3 {[%clk 0:00:34.5]} 39... Qb5 {[%clk 0:00:31.4]} 40. Qe2 {[%clk
0:00:28.2]} 40... Qf5 {[%clk 0:00:29.7]} 41. e4 {[%clk 0:00:26.7]} 41... Qe5
{[%clk 0:00:27.2]} 42. Rd2 {[%clk 0:00:19.8]} 42... h4 {[%clk 0:00:26]} 43. Rd5
{[%clk 0:00:18.6]} 43... Qg7 {[%clk 0:00:25.1]} 44. Qf3 {[%clk 0:00:16.8]} 44...
hxg3 {[%clk 0:00:13.9]} 45. Qxg3 {[%clk 0:00:16.8]} 45... Kh7 {[%clk 0:00:14.1]}
46. Qxg7+ {[%clk 0:00:16.2]} 46... Bxg7 {[%clk 0:00:14.4]} 47. f4 {[%clk
0:00:15.8]} 47... Bb2 {[%clk 0:00:14]} 48. Kg3 {[%clk 0:00:15.4]} 48... Kg6
{[%clk 0:00:14.3]} 49. Kg4 {[%clk 0:00:15.8]} 49... Kf6 {[%clk 0:00:14.7]} 50.
Rd6+ {[%clk 0:00:15.3]} 50... Kg7 {[%clk 0:00:15.2]} 51. Kh5 {[%clk 0:00:14.5]}
51... Bc1 {[%clk 0:00:15.2]} 52. Kg4 {[%clk 0:00:12]} 52... Bb2 {[%clk
0:00:15.1]} 53. Ra6 {[%clk 0:00:11.8]} 53... Bc1 {[%clk 0:00:15.2]} 54. e5
{[%clk 0:00:10.8]} 54... Bb2 {[%clk 0:00:15.6]} 55. Kf5 {[%clk 0:00:10.9]} 55...
Bc1 {[%clk 0:00:15.4]} 56. Ra7 {[%clk 0:00:11.4]} 56... Kf8 {[%clk 0:00:15.3]}
57. Kf6 {[%clk 0:00:11]} 57... Ke8 {[%clk 0:00:14.9]} 58. Ra8+ {[%clk
0:00:09.8]} 58... Kd7 {[%clk 0:00:15.1]} 59. Kxf7 {[%clk 0:00:10.5]} 59... Bxf4
{[%clk 0:00:14.4]} 60. e6+ {[%clk 0:00:11.1]} 1-0

[Event "Late-Titled-Tuesday-Blitz-March-26-2024"]
[Site "Chess.com"]
[Date "2024.03.26"]
[Round "8"]
[White "maurovargas01"]
[Black "AntonovaNadezhda"]
[Result "0-1"]
[WhiteElo "1844"]
[BlackElo "2166"]
[TimeControl "180+1"]
[EndTime "15:28:57 PDT"]
[Termination "AntonovaNadezhda won on time"]

1. e4 {[%clk 0:03:00]} 1... c5 {[%clk 0:02:59.6]} 2. Nc3 {[%clk 0:03:00.1]} 2...
d6 {[%clk 0:03:00.5]} 3. f4 {[%clk 0:03:01]} 3... Nf6 {[%clk 0:03:00.7]} 4. Nf3
{[%clk 0:03:01.9]} 4... g6 {[%clk 0:03:01.2]} 5. Bb5+ {[%clk 0:03:01.8]} 5...
Nbd7 {[%clk 0:03:00.9]} 6. O-O {[%clk 0:03:00.6]} 6... Bg7 {[%clk 0:03:00.9]} 7.
a4 {[%clk 0:02:58.4]} 7... O-O {[%clk 0:03:00.4]} 8. Bc4 {[%clk 0:02:55.1]} 8...
b6 {[%clk 0:02:55]} 9. d3 {[%clk 0:02:51.7]} 9... Bb7 {[%clk 0:02:54.5]} 10. Qe1
{[%clk 0:02:50]} 10... e6 {[%clk 0:02:51.9]} 11. Qh4 {[%clk 0:02:49.2]} 11... d5
{[%clk 0:02:51.7]} 12. Bb3 {[%clk 0:02:43.9]} 12... dxe4 {[%clk 0:02:51.1]} 13.
dxe4 {[%clk 0:02:39.1]} 13... Nxe4 {[%clk 0:02:51]} 14. Nxe4 {[%clk 0:02:25.7]}
14... Qxh4 {[%clk 0:02:49.1]} 15. Nxh4 {[%clk 0:02:21.3]} 15... Bxe4 {[%clk
0:02:49.3]} 16. Nf3 {[%clk 0:02:10.5]} 16... Rac8 {[%clk 0:02:46.4]} 17. a5
{[%clk 0:02:10.3]} 17... c4 {[%clk 0:02:43.3]} 18. Ba4 {[%clk 0:02:08.6]} 18...
Nc5 {[%clk 0:02:43.7]} 19. Bb5 {[%clk 0:02:05.7]} 19... Bxc2 {[%clk 0:02:40.9]}
20. Bxc4 {[%clk 0:02:02.7]} 20... Bd3 {[%clk 0:02:34]} 21. Bxd3 {[%clk
0:01:58.8]} 21... Nxd3 {[%clk 0:02:34.9]} 22. Be3 {[%clk 0:01:58.5]} 22... Nxb2
{[%clk 0:02:22.6]} 23. Rab1 {[%clk 0:01:55.2]} 23... Nc4 {[%clk 0:02:21.2]} 24.
Bf2 {[%clk 0:01:53.8]} 24... Nxa5 {[%clk 0:02:20.8]} 25. Rfd1 {[%clk 0:01:44.1]}
25... Rfd8 {[%clk 0:02:19.9]} 26. Bh4 {[%clk 0:01:37.9]} 26... Rxd1+ {[%clk
0:02:17.5]} 27. Rxd1 {[%clk 0:01:37.5]} 27... Nb3 {[%clk 0:02:06.8]} 28. Rd7
{[%clk 0:01:31.6]} 28... a5 {[%clk 0:01:55.2]} 29. Ng5 {[%clk 0:01:31]} 29...
Bf6 {[%clk 0:01:27.1]} 30. Bf2 {[%clk 0:01:17.3]} 30... Rc1+ {[%clk 0:01:23.9]}
31. Be1 {[%clk 0:01:11.7]} 31... Rxe1+ {[%clk 0:01:23.7]} 32. Kf2 {[%clk
0:01:12.6]} 32... Bxg5 {[%clk 0:01:11.3]} 33. Kxe1 {[%clk 0:01:08.2]} 33... Bxf4
{[%clk 0:01:11.3]} 34. g3 {[%clk 0:01:08.4]} 34... Bd2+ {[%clk 0:00:58.2]} 35.
Ke2 {[%clk 0:01:06.4]} 35... Bb4 {[%clk 0:00:58.3]} 36. Rd8+ {[%clk 0:01:01.1]}
36... Kg7 {[%clk 0:00:58]} 37. Rc8 {[%clk 0:01:01.1]} 37... Bc5 {[%clk
0:00:57.6]} 38. Kd3 {[%clk 0:00:59.1]} 38... Nd4 {[%clk 0:00:50.7]} 39. Kc4
{[%clk 0:00:56.3]} 39... Nf3 {[%clk 0:00:48.2]} 40. h3 {[%clk 0:00:53.6]} 40...
a4 {[%clk 0:00:47.8]} 41. Ra8 {[%clk 0:00:52.6]} 41... a3 {[%clk 0:00:47.8]} 42.
Kb3 {[%clk 0:00:49.1]} 42... h5 {[%clk 0:00:46.8]} 43. Ra4 {[%clk 0:00:45.9]}
43... Nd4+ {[%clk 0:00:44.4]} 44. Ka2 {[%clk 0:00:43.2]} 44... Nb5 {[%clk
0:00:42.7]} 45. Ra8 {[%clk 0:00:40.1]} 45... Kf6 {[%clk 0:00:42.5]} 46. Rc8
{[%clk 0:00:34.6]} 46... Nc3+ {[%clk 0:00:42]} 47. Ka1 {[%clk 0:00:32]} 47...
Ne4 {[%clk 0:00:41.5]} 48. g4 {[%clk 0:00:28.7]} 48... hxg4 {[%clk 0:00:41.3]}
49. hxg4 {[%clk 0:00:29.6]} 49... Kg5 {[%clk 0:00:41.4]} 50. Rc7 {[%clk
0:00:25.1]} 50... Nd6 {[%clk 0:00:41.3]} 51. Ka2 {[%clk 0:00:21.1]} 51... Kxg4
{[%clk 0:00:41.1]} 52. Rd7 {[%clk 0:00:19.1]} 52... Kf3 {[%clk 0:00:40.9]} 53.
Kb3 {[%clk 0:00:15.6]} 53... g5 {[%clk 0:00:40.9]} 54. Rd8 {[%clk 0:00:14.5]}
54... g4 {[%clk 0:00:40.3]} 55. Rg8 {[%clk 0:00:14.1]} 55... g3 {[%clk
0:00:40.5]} 56. Ka2 {[%clk 0:00:14.1]} 56... g2 {[%clk 0:00:40.5]} 57. Rg7
{[%clk 0:00:11.7]} 57... e5 {[%clk 0:00:35.7]} 58. Rg8 {[%clk 0:00:10.3]} 58...
e4 {[%clk 0:00:35.7]} 59. Rg7 {[%clk 0:00:09.6]} 59... e3 {[%clk 0:00:35.5]} 60.
Rg5 {[%clk 0:00:05.5]} 60... e2 {[%clk 0:00:33.4]} 0-1